bitfinex-derivatives/quotes_ETHF0:USTF0_20250708
["timestamp","ask_amount","ask_price","bid_price","bid_amount"]
[1751994469789,59.92081,2597.7,2597.6,3.2078]
[1751994470485,61.85171,2597.7,2597.6,3.2078]
[1751994471189,2.51,2598.6,2597.8,9.62225]
[1751994471378,9.842,2600.6,2597.7,38.49023]
[1751994471379,22.71035035,2600.4,2600.3,0.76904]
[1751994471586,3.2078,2600.6,2600.5,0.76898]
[1751994471782,3.2078,2600.6,2600.5,3.92483983]
[1751994471983,13.45054473,2600.6,2600.5,2.23207079]
[1751994472184,70.78974473,2600.6,2600.5,3.00105079]
[1751994472483,60.575,2600.6,2600.5,8.8740057]
[1751994472688,60.832,2600.6,2600.5,2.57955657]
[1751994472989,60.832,2600.6,2600.5,3.34853657]
[1751994473184,60.832,2600.6,2600.5,3.90955723]
[1751994473185,69.93781473,2600.6,2600.5,3.90955723]
[1751994473392,59.69507,2600.6,2600.5,6.45726242]
[1751994473786,59.69507,2600.6,2600.5,4.21980789]
[1751994473986,59.69507,2600.6,2600.5,6.45711565]
[1751994474182,59.69507,2600.6,2600.5,4.77965173]
[1751994474391,59.69507,2600.6,2600.5,2.54232145]
[1751994474392,71.68696473,2600.6,2600.5,2.54232145]
[1751994474590,71.68696473,2600.6,2600.5,2.54377552]
[1751994474792,75.91801473,2600.6,2600.3,1.67559182]
[1751994474987,0.76904,2600.3,2600.2,1.67559182]
[1751994475189,61.9362,2600.3,2600.1,1.67559182]
[1751994475488,3.204,2601.0,2600.3,3.8452]
[1751994475685,0.09578987,2602.8,2601.0,3.84409]
[1751994475885,0.09578987,2602.8,2602.2,1.67260944]
[1751994476085,0.24274473,2602.1,2602.0,1.67260944]
[1751994476282,61.728,2602.1,2601.8,1.67260944]
[1751994476486,0.24274473,2602.0,2601.5,7.8046505]
[1751994476781,0.24274473,2601.9,2601.5,7.51254106]
[1751994476991,61.754,2601.9,2601.6,1.67260944]
[1751994477186,61.754,2601.9,2601.7,9.33984106]
[1751994477393,61.754,2601.9,2601.7,11.48895106]
[1751994477691,61.754,2601.9,2601.7,10.72034106]
[1751994477990,61.754,2601.9,2601.7,3.2078]
[1751994478696,61.655,2602.5,2601.8,3.56831068]
[1751994478888,61.81178987,2602.8,2602.4,3.2078]
[1751994479088,0.09578987,2602.8,2602.6,6.13204106]
[1751994479285,3.2078,2603.3,2602.7,3.2078]
[1751994479484,62.66474473,2603.2,2602.7,10.59574106]
[1751994479684,62.66474473,2603.2,2602.6,0.9543]
[1751994479685,62.422,2603.1,2603.0,6.90028106]
[1751994479891,62.422,2603.1,2603.0,7.38794106]
[1751994480094,62.422,2603.1,2603.0,12.38794106]
[1751994480394,62.38,2603.3,2603.0,14.33984106]
[1751994480690,0.7683,2602.8,2602.7,1.65770612]
[1751994480890,63.46204473,2602.8,2602.7,1.65770612]
[1751994481189,67.69374473,2602.8,2602.3,3.34600033]
[1751994481395,0.24274473,2602.5,2602.4,2.21010825]
[1751994481592,62.41,2602.5,2602.3,3.34600033]
[1751994481894,0.24274473,2602.3,2602.1,2.20625809]
[1751994482098,0.24274473,2602.3,2602.0,3.2078]
[1751994482287,0.24274473,2602.1,2602.0,3.2078]
[1751994482796,0.24274473,2602.1,2601.7,2.20625809]
[1751994482994,3.45054473,2601.8,2601.3,3.34600033]
[1751994483191,0.76874,2601.3,2601.2,3.30838211]
[1751994483396,63.08874,2601.3,2601.2,3.65819143]
[1751994483600,63.08874,2601.3,2601.2,0.34980932]
[1751994483601,64.67378473,2601.3,2601.2,0.34980932]
[1751994483891,64.67378473,2601.3,2601.2,2.20452955]
[1751994483892,68.90504473,2601.3,2601.2,2.20452955]
[1751994484097,72.88158473,2601.3,2601.2,2.20452955]
[1751994484498,0.76897,2600.6,2600.3,7.6241552]
[1751994484688,63.5863,2600.5,2600.4,0.34981243]
[1751994485093,62.244,2600.5,2600.4,1.11882243]
[1751994486000,62.159,2600.9,2600.8,0.76889]
[1751994486204,62.159,2600.9,2600.8,3.97669]
[1751994486698,62.14,2602.0,2601.5,0.76868]
[1751994486998,62.36374473,2601.9,2601.7,3.2078]
[1751994487191,0.24274473,2602.0,2601.8,6.13204106]
[1751994487391,0.24274473,2602.0,2601.9,0.76855]
[1751994487591,63.4783,2602.3,2602.1,0.76849]
[1751994487797,0.24274473,2602.3,2602.2,0.76846]
[1751994488096,62.134,2602.5,2601.8,9.33984106]
[1751994488097,62.134,2602.5,2602.4,0.76841]
[1751994488296,0.24274473,2602.3,2602.1,3.2078]
[1751994488497,0.24274473,2602.3,2602.2,0.76847]
[1751994488799,0.24274473,2602.3,2602.1,3.2078]
[1751994488994,62.134,2602.5,2602.1,3.2078]
[1751994489194,62.134,2602.5,2601.8,3.2078]
[1751994489499,0.24274473,2601.9,2601.8,3.2078]
[1751994489694,62.31074473,2601.9,2601.8,0.32454333]
[1751994489903,63.29094473,2601.9,2601.8,0.32454333]
[1751994490094,64.63694473,2601.9,2601.8,0.32454333]
[1751994490600,69.63694473,2601.9,2601.1,3.2078]
[1751994490796,0.24274473,2601.3,2601.2,0.76877]
[1751994490997,62.049,2601.3,2601.2,0.76877]
[1751994491191,62.29174473,2601.3,2601.2,0.76877]
[1751994491394,62.29174473,2601.3,2601.1,3.2078]
[1751994491596,2.52824473,2601.2,2600.9,0.76885]
[1751994491794,61.992,2601.1,2600.9,0.76885]
[1751994492095,61.992,2601.1,2601.0,2.4131787]
[1751994492296,61.992,2601.1,2601.0,3.1820087]
[1751994492499,62.23474473,2601.1,2601.0,3.18207977]
[1751994492697,61.992,2601.1,2601.0,2.84278609]
[1751994492897,62.23474473,2601.1,2601.0,2.84278609]
[1751994493094,61.992,2601.1,2601.0,2.84278609]
[1751994493296,0.76868,2601.5,2601.0,11.41379715]
[1751994493297,61.9,2601.5,2601.0,11.41379715]
[1751994493500,0.24274473,2601.4,2601.3,6.90078106]
[1751994493702,62.14274473,2601.5,2601.4,0.76871]
[1751994493908,61.9,2601.5,2601.4,2.84266609]
[1751994494201,0.76847,2602.3,2601.9,0.76854]
[1751994494402,66.029,2602.2,2602.0,2.07399505]
[1751994494597,0.76854,2602.0,2601.7,0.76861]
[1751994494798,61.821,2601.9,2601.8,2.84268446]
[1751994495100,62.8012,2601.9,2601.8,2.07409446]
[1751994495294,62.06374473,2601.9,2601.8,2.84268446]
[1751994495490,62.06374473,2601.9,2601.8,2.07409446]
[1751994495693,62.06374473,2601.9,2601.8,2.84268446]
[1751994496200,62.06374473,2601.9,2601.8,2.07409446]
[1751994496994,62.06374473,2601.9,2601.8,2.84268446]
[1751994497195,62.06374473,2601.9,2601.8,2.07409446]
[1751994497402,62.83230473,2601.9,2601.8,2.07409446]
[1751994497903,62.06374473,2601.9,2601.8,2.07409446]
[1751994498103,62.83230473,2601.9,2601.8,2.07409446]
[1751994498295,63.04394473,2601.9,2601.6,3.2078]
[1751994498502,62.58958,2601.9,2601.7,2.08170366]
[1751994498700,61.821,2601.9,2601.8,2.85029366]
[1751994498901,62.58956,2601.9,2601.8,2.08170366]
[1751994499208,62.83230473,2601.9,2601.8,2.08170366]
[1751994499900,9.87e-06,2604.4,2604.3,0.76785]
[1751994500102,3.2078,2606.2,2604.4,3.2078]
[1751994500303,62.196,2605.9,2605.5,3.2078]
[1751994500702,3.2078,2606.2,2605.6,2.07645377]
[1751994500903,62.336,2605.9,2605.7,2.07645377]
[1751994501107,62.336,2605.9,2605.8,2.07645377]
[1751994501304,62.336,2605.9,2605.8,2.08119187]
[1751994501511,65.5468,2605.9,2605.1,3.2078]
[1751994501808,62.357,2605.8,2605.4,3.2078]
[1751994502005,62.357,2605.8,2605.5,2.08122226]
[1751994502306,0.09578987,2606.0,2605.5,3.2078]
[1751994502502,62.60278987,2606.0,2605.5,3.2078]
[1751994502811,62.516,2605.9,2605.5,3.2078]
[1751994503210,62.513,2605.8,2605.5,3.2078]
[1751994503517,62.503,2605.9,2605.5,3.2078]
[1751994503708,0.09578987,2606.0,2605.7,3.2078]
[1751994503709,62.633,2605.8,2605.7,3.2078]
[1751994504105,62.633,2605.8,2605.7,3.97524]
[1751994504307,62.633,2605.8,2605.7,3.2078]
[1751994504507,0.09578987,2606.0,2605.7,3.2078]
[1751994504707,62.668,2605.9,2605.7,3.2078]
[1751994504912,0.9712,2608.8,2606.5,3.2078]
[1751994505111,0.9712,2608.8,2607.9,3.2078]
[1751994505308,0.9712,2608.8,2608.3,0.76668]
[1751994505507,0.9712,2608.8,2608.3,3.2078]
[1751994506009,63.353,2609.3,2608.8,0.76652]
[1751994506208,3.2078,2609.1,2608.4,4.5484]
[1751994506402,8.70102236,2610.2,2608.4,4.5484]
[1751994506403,63.376,2609.0,2608.5,3.2078]
[1751994506604,1.91554,2609.9,2608.7,3.2078]
[1751994506605,63.376,2608.9,2608.7,3.2078]
[1751994506805,3.2078,2609.5,2608.0,3.2078]
[1751994506806,0.76658,2608.7,2608.0,3.2078]
[1751994507010,66.6218,2608.8,2607.6,3.2078]
[1751994507011,3.2078,2608.5,2607.6,3.2078]
[1751994507213,0.76679,2608.0,2607.6,3.2078]
[1751994507405,58.5348,2609.3,2607.9,11.90882236]
[1751994507607,3.2078,2609.7,2609.0,3.2078]
[1751994507815,3.2078,2609.7,2607.4,3.8346]
[1751994507816,3.2078,2610.3,2609.3,3.2078]
[1751994508014,3.2078,2610.0,2609.3,3.2078]
[1751994508221,64.066,2609.9,2609.0,3.2078]
[1751994508426,0.76644,2609.1,2609.0,3.2078]
[1751994508726,64.83444,2609.1,2609.0,3.2078]
[1751994508916,64.068,2609.1,2609.0,3.2078]
[1751994509121,0.76628,2609.7,2609.0,4.2206]
[1751994509419,64.027,2610.0,2609.6,3.2078]
[1751994509720,64.027,2609.9,2609.6,3.2078]
[1751994509921,64.173,2610.2,2609.6,3.2078]
[1751994510121,67.3808,2610.5,2610.0,3.2078]
[1751994510620,0.21871723,2610.8,2610.4,3.2078]
[1751994510820,0.76599,2610.7,2610.1,1.3539]
[1751994511016,0.766,2610.6,2610.5,3.2078]
[1751994511220,64.56371723,2610.8,2610.5,3.2078]
[1751994511420,0.766,2610.6,2610.5,3.2078]
[1751994511623,1.9151,2610.5,2610.0,3.2078]
[1751994511820,0.76631,2609.6,2609.0,0.76645]
[1751994512121,1.2848,2610.5,2608.6,10.05492236]
[1751994512122,0.21871723,2610.8,2609.5,8.70102236]
[1751994512320,0.21871723,2610.8,2610.4,3.2078]
[1751994512726,0.21871723,2610.8,2609.9,8.70102236]
[1751994512727,0.21871723,2610.8,2610.7,3.2078]
[1751994513426,0.21871723,2610.8,2610.7,3.97377]
[1751994513820,3.2078,2612.0,2610.7,8.2078]
[1751994514025,3.2078,2612.0,2611.3,3.2078]
[1751994514325,0.76577,2611.4,2611.3,3.2078]
[1751994514524,0.76584,2611.2,2610.9,3.2078]
[1751994514925,0.76588,2611.0,2610.9,3.2078]
[1751994515122,1.2749,2611.1,2610.9,3.2078]
[1751994515320,3.2078,2611.8,2611.0,0.76588]
[1751994515526,1.3847,2611.5,2611.0,3.2078]
[1751994515825,1.3847,2611.5,2611.0,3.97367]
[1751994516033,3.2078,2611.1,2610.2,3.2078]
[1751994516228,1.3847,2611.0,2610.8,0.76593]
[1751994516529,3.2078,2611.5,2610.6,3.2078]
[1751994516530,32.793,2611.2,2610.6,3.2078]
[1751994516726,0.76585,2611.1,2610.5,3.97382]
[1751994517030,1.3847,2611.0,2610.6,0.76599]
[1751994517227,1.3847,2611.0,2610.8,0.76593]
[1751994517423,32.793,2611.2,2610.7,0.76595]
[1751994517631,37.3855,2611.2,2610.5,3.97382]
[1751994517925,3.2078,2610.8,2610.2,3.2078]
[1751994518126,0.76608,2610.4,2610.2,3.2078]
[1751994518433,0.76616,2610.1,2609.8,3.2078]
[1751994518629,1.335,2610.0,2609.8,3.2078]
[1751994518824,2.10119,2610.0,2609.8,3.2078]
[1751994519125,3.2078,2610.2,2609.2,11.90882236]
[1751994519330,2.10116,2610.1,2609.7,0.76624]
[1751994519631,1.335,2610.1,2609.8,0.76624]
[1751994519831,32.815,2610.2,2609.5,3.2078]
[1751994520031,0.76612,2610.2,2609.5,3.2078]
[1751994520231,32.8,2610.3,2609.5,3.2078]
[1751994520527,4.5428,2610.2,2609.5,3.2078]
[1751994520830,0.76625,2609.8,2609.5,3.2078]
[1751994521025,32.775,2610.0,2609.5,3.2078]
[1751994521230,0.76625,2609.8,2609.5,3.2078]
[1751994521434,2.10123,2609.9,2609.5,3.2078]
[1751994521622,0.76624,2609.8,2609.5,3.2078]
[1751994521822,32.744,2610.0,2609.5,3.97411]
[1751994522027,32.744,2610.0,2609.5,3.2078]
[1751994522028,33.51018,2610.0,2609.5,3.2078]
[1751994522223,3.2078,2610.2,2609.5,3.2078]
[1751994522429,3.2078,2610.2,2609.8,0.76623]
[1751994522628,1.322,2610.1,2609.7,0.76625]
[1751994522832,1.322,2610.1,2609.6,9.46729236]
[1751994523032,1.322,2610.1,2609.5,4.5844]
[1751994523234,1.322,2610.1,2609.6,0.76628]
[1751994523437,1.322,2610.1,2609.5,4.5844]
[1751994523637,1.322,2610.1,2609.5,3.97411]
[1751994523638,0.76618,2610.0,2609.5,3.97411]
[1751994523830,1.322,2609.9,2609.5,3.2078]
[1751994524027,1.322,2609.9,2609.7,0.76625]
[1751994524232,55.98704,2610.5,2609.8,3.2078]
[1751994524433,2.14687,2610.4,2609.8,3.97403]
[1751994524736,0.76608,2610.3,2609.8,3.2078]
[1751994524935,1.3808,2610.2,2609.8,3.97402]
[1751994525331,55.221,2610.5,2610.1,3.2078]
[1751994525538,90.01983,2610.5,2610.1,3.2078]
[1751994525929,90.01983,2610.5,2610.0,8.70102236]
[1751994525930,0.6664,2610.8,2610.4,3.2078]
[1751994526136,1.3808,2610.8,2610.4,3.2078]
[1751994526633,2.14676,2610.8,2610.4,3.2078]
[1751994526829,1.3808,2610.8,2610.4,3.2078]
[1751994527034,0.76605,2610.5,2610.2,3.2078]
[1751994527229,3.2078,2610.9,2610.3,1.0128]
[1751994527530,0.76583,2611.2,2610.7,0.76595]
[1751994527531,1.3808,2611.1,2610.7,0.76595]
[1751994527736,35.41693,2611.0,2610.2,3.2078]
[1751994527937,1.91514,2610.4,2609.4,3.22515]
[1751994528138,1.9158,2609.5,2609.1,3.2078]
[1751994528333,3.83107,2609.9,2608.4,3.2078]
[1751994528334,1.91625,2608.9,2608.4,3.2078]
[1751994528530,1.3453,2608.8,2608.5,0.31867887]
[1751994528730,3.2078,2608.7,2607.9,0.32945272]
[1751994528928,0.76707,2607.0,2606.2,1.0128]
[1751994529129,2.74745022,2606.9,2606.3,1.96436931]
[1751994529327,2.37341692,2606.9,2606.4,1.96436931]
[1751994529531,0.76719,2606.6,2606.5,1.96436931]
[1751994529839,3.97499,2606.6,2606.5,1.96436931]
[1751994530038,8.97499,2606.6,2606.5,1.96436931]
[1751994530238,40.8808,2606.6,2606.5,1.96436931]
[1751994530533,41.18759876,2606.6,2606.5,1.96436931]
[1751994530933,41.18759876,2606.6,2606.5,0.92166931]
[1751994531128,41.18759876,2606.6,2605.5,4.4163552]
[1751994531129,40.42042876,2606.6,2605.5,4.4163552]
[1751994531439,0.76752,2605.5,2605.2,4.4163552]
[1751994531634,35.27728396,2605.7,2605.3,4.4163552]
[1751994532034,0.76746,2605.6,2605.3,4.4163552]
[1751994532333,3.2078,2605.7,2605.4,4.4163552]
[1751994532528,0.76733,2606.1,2605.4,4.4163552]
[1751994532731,3.2078,2606.0,2605.2,5.520444]
[1751994533034,0.76736,2606.0,2605.5,4.39723417]
[1751994533236,44.0078,2606.1,2605.3,0.76755]
[1751994533434,3.2078,2606.4,2605.4,1.0231]
[1751994533733,35.9218,2606.4,2605.4,1.7906]
[1751994533930,35.9218,2606.4,2605.4,1.0231]
[1751994534134,0.76734,2606.1,2605.4,1.0231]
[1751994534333,32.809,2606.3,2605.2,3.2078]
[1751994534529,0.76742,2605.8,2605.2,3.2078]
[1751994534734,0.76739,2605.9,2605.2,3.2078]
[1751994535041,3.2078,2605.8,2604.9,4.2309]
[1751994535241,0.76746,2605.6,2604.9,3.2078]
[1751994535436,32.771,2605.7,2604.9,3.2078]
[1751994535437,0.76753,2605.4,2604.9,3.2078]
[1751994535742,44.0078,2605.9,2605.0,1.0231]
[1751994536041,76.7468,2605.9,2605.0,1.0231]
[1751994536241,77.51418,2605.9,2605.2,3.2078]
[1751994536436,55.225,2606.4,2605.7,3.2078]
[1751994536634,3.2078,2606.2,2605.1,1.326]
[1751994536839,0.76754,2605.4,2605.0,3.2078]
[1751994537037,3.2078,2605.7,2605.0,3.2078]
[1751994537239,3.2078,2605.7,2605.0,3.97542]
[1751994537438,0.76744,2605.7,2605.0,3.2078]
[1751994537740,0.76745,2605.7,2605.0,3.2078]
[1751994537935,40.8,2605.9,2605.0,3.2078]
[1751994538143,0.76748,2605.6,2605.0,3.2078]
[1751994538338,40.8,2605.9,2605.3,3.97535]
[1751994538539,32.901,2605.8,2605.3,3.2078]
[1751994538736,3.2078,2606.5,2605.6,3.2078]
[1751994538936,3.2078,2606.5,2606.0,3.2078]
[1751994539333,2.60048,2607.1,2606.0,4.2309]
[1751994539334,3.2078,2606.9,2606.0,4.2309]
[1751994539534,3.2078,2606.9,2606.4,0.7672]
[1751994539535,36.0738,2606.9,2606.4,0.7672]
[1751994539845,3.2078,2606.9,2606.4,1.79031]
[1751994540140,3.2078,2606.9,2606.5,0.76718]
[1751994540345,0.76712,2606.8,2606.4,1.0231]
[1751994540548,65.682,2606.8,2606.6,3.2078]
[1751994541035,3.97482,2607.2,2606.6,3.97496]
[1751994541235,0.76714,2606.7,2606.6,3.2078]
[1751994541434,0.76713,2606.8,2606.6,3.2078]
[1751994541639,3.83399,2607.9,2606.6,3.2078]
[1751994541640,3.2078,2608.7,2607.1,1.91753]
[1751994541840,0.0042,2609.5,2606.9,3.2078]
[1751994541841,1.3213,2609.0,2608.1,12.67554236]
[1751994542045,1.3213,2608.6,2608.1,11.90882236]
[1751994542348,3.2078,2608.3,2607.7,3.2078]
[1751994542641,3.2078,2608.0,2607.1,4.5058]
[1751994542834,1.2748,2607.9,2607.1,3.2078]
[1751994543144,33.086,2607.8,2607.1,3.2078]
[1751994543338,1.2748,2607.9,2607.4,3.2078]
[1751994543639,3.2078,2608.0,2607.5,1.0231]
[1751994543942,33.031,2608.1,2607.7,11.90882236]
[1751994544243,55.26,2608.7,2607.7,11.90882236]
[1751994544244,3.2078,2609.4,2608.0,5.12468]
[1751994544545,33.015,2609.3,2608.7,3.2078]
[1751994544740,33.015,2609.3,2608.7,4.5058]
[1751994544940,3.2078,2609.4,2608.7,4.5058]
[1751994545237,0.76648,2609.0,2608.4,3.2078]
[1751994545444,40.8,2609.6,2608.5,1.0231]
[1751994545735,40.8,2609.6,2608.7,3.2078]
[1751994545736,37.4979,2609.5,2608.7,3.2078]
[1751994545936,34.2901,2609.5,2608.7,3.2078]
[1751994546143,0.76643,2609.2,2608.7,3.2078]
[1751994546338,34.2901,2609.5,2608.7,3.2078]
[1751994546739,32.919,2609.4,2608.7,3.2078]
[1751994546942,0.76638,2609.3,2608.7,3.2078]
[1751994547244,3.2078,2608.8,2608.1,3.2078]
[1751994547434,0.7667,2608.2,2608.1,3.2078]
[1751994547642,1.3121,2608.7,2608.1,1.0231]
[1751994547943,60.37013,2608.8,2608.1,1.0231]
[1751994547944,56.01254,2608.8,2608.3,3.2078]
[1751994548246,55.246,2608.8,2608.4,1.0231]
[1751994548544,0.76655,2608.7,2608.4,2.2969]
[1751994548737,0.76669,2608.3,2607.9,3.2078]
[1751994548935,32.911,2608.5,2608.0,1.0231]
[1751994549140,32.911,2608.5,2608.1,1.0231]
[1751994549141,0.76661,2608.5,2608.1,1.0231]
[1751994549342,33.65361,2608.5,2608.2,5.5156]
[1751994549650,32.887,2608.5,2608.2,4.4925]
[1751994549941,32.885,2608.7,2608.3,1.0231]
[1751994550248,3.83557,2609.7,2608.5,3.2078]
[1751994550249,32.855,2609.1,2608.5,3.2078]
[1751994550440,0.76649,2608.9,2608.5,3.2078]
[1751994550644,0.76651,2608.9,2608.6,1.2847]
[1751994550940,0.76653,2608.8,2608.6,1.2847]
[1751994551140,0.7665,2608.9,2608.6,1.2847]
[1751994551341,0.76655,2608.7,2608.6,1.2847]
[1751994551642,1.9158,2609.5,2608.6,1.2847]
[1751994551643,1.91577,2609.6,2608.6,9.98572236]
[1751994551847,0.76642,2609.2,2608.8,3.2078]
[1751994552139,0.7664,2609.3,2608.8,3.2078]
[1751994552344,1.2549,2609.2,2608.8,3.2078]
[1751994552645,0.76651,2608.9,2608.5,3.2078]
[1751994552844,4.4627,2609.2,2608.5,3.2078]
[1751994552845,33.58352,2608.8,2608.5,3.2078]
[1751994553348,36.0248,2608.8,2608.2,3.2078]
[1751994553546,1.2549,2608.7,2608.2,3.2078]
[1751994553738,1.2549,2608.7,2607.9,3.2078]
[1751994553944,1.2549,2608.7,2607.8,0.7668]
[1751994553945,32.776,2608.6,2608.2,3.2078]
[1751994554144,0.76661,2608.5,2608.2,3.2078]
[1751994554345,1.2549,2608.5,2608.2,3.2078]
[1751994554746,55.235,2608.7,2608.2,3.2078]
[1751994554947,32.774,2608.6,2608.3,1.3498]
[1751994555141,32.774,2608.6,2608.2,12.67550236]
[1751994555142,33.54059,2608.6,2608.2,3.2078]
[1751994555350,34.80329,2608.6,2608.2,3.2078]
[1751994555549,0.76665,2608.4,2608.2,3.2078]
[1751994555848,0.76667,2608.3,2607.9,3.2078]
[1751994556242,34.8033,2608.6,2608.0,3.13964]
[1751994556445,0.76668,2608.3,2608.0,1.0231]
[1751994556640,0.76665,2608.4,2608.0,1.0231]
[1751994556854,34.0367,2608.6,2608.0,1.0231]
[1751994557150,0.76671,2608.2,2607.9,3.2078]
[1751994557347,65.306,2608.2,2607.5,3.2078]
[1751994557654,0.76683,2607.8,2607.3,0.76695]
[1751994557849,65.282,2607.7,2607.3,1.2815]
[1751994558047,65.282,2607.7,2607.5,3.2078]
[1751994558252,65.282,2607.7,2607.6,1.0231]
[1751994558450,65.282,2607.7,2607.6,2.3046]
[1751994558750,65.228,2607.9,2607.7,0.76684]
[1751994559047,65.228,2607.9,2607.8,3.2078]
[1751994559249,65.99479,2607.9,2607.8,3.2078]
[1751994559557,0.7669,2607.6,2607.3,3.2078]
[1751994559853,65.90188,2607.6,2607.3,4.2309]
[1751994560053,65.90188,2607.6,2607.4,1.0231]
[1751994560054,65.135,2607.6,2607.4,1.0231]
[1751994560255,65.90189,2607.6,2607.4,1.0231]
[1751994561046,0.7669,2607.5,2607.4,1.0231]
[1751994561252,0.76693,2607.4,2607.3,3.2078]
[1751994561550,0.76703,2607.1,2606.9,4.2309]
[1751994561754,3.2974,2607.5,2606.9,3.2078]
[1751994561755,0.76701,2607.2,2606.9,3.2078]
[1751994561954,0.76701,2607.2,2606.9,5.6122]
[1751994562151,1.3801,2607.5,2606.9,4.5891]
[1751994562352,1.3801,2607.5,2607.2,3.2078]
[1751994562554,0.76694,2607.4,2607.2,3.2078]
[1751994562748,65.135,2607.6,2607.3,1.71145]
[1751994562952,65.90188,2607.6,2607.4,0.9445]
[1751994563160,65.135,2607.6,2607.5,4.1523]
[1751994563359,65.135,2607.6,2607.5,4.9192]
[1751994563554,32.389,2607.6,2607.5,4.9192]
[1751994563760,32.389,2607.6,2607.5,6.3005]
[1751994563965,1.3801,2608.0,2607.5,6.3005]
[1751994563966,5.12456,2608.2,2607.5,5.5336]
[1751994564156,0.76674,2608.1,2607.8,11.90882236]
[1751994564459,32.347,2608.0,2607.9,1.71129]
[1751994564655,32.335,2608.3,2608.2,0.76669]
[1751994564861,56.5444,2608.7,2608.2,12.85332236]
[1751994565055,3.2078,2609.2,2608.6,9.46758236]
[1751994565252,0.76655,2608.7,2608.5,3.2078]
[1751994565857,33.06855,2608.7,2608.5,3.2078]
[1751994566059,32.302,2608.7,2608.5,3.2078]
[1751994566260,0.76658,2608.6,2608.5,3.2078]
[1751994566455,1.3094,2608.6,2608.5,3.2078]
[1751994566657,1.91598,2609.3,2608.5,4.9189]
[1751994566965,33.5434,2609.2,2608.5,4.9189]
[1751994567164,0.76648,2609.0,2608.5,4.9189]
[1751994567366,0.76649,2608.9,2608.5,4.9189]
[1751994567560,32.234,2608.8,2608.5,4.1523]
[1751994567765,32.234,2608.8,2608.5,4.9189]
[1751994568062,32.234,2608.7,2608.5,4.1523]
[1751994568266,32.234,2608.7,2608.6,2.58362103]
[1751994568759,0.7664,2609.3,2608.9,0.76648]
[1751994568956,32.173,2609.2,2608.8,3.9743]
[1751994569158,32.173,2609.2,2608.8,4.1523]
[1751994569366,0.76648,2609.0,2608.8,4.1523]
[1751994569558,32.156,2609.4,2608.8,4.1523]
[1751994569757,55.236,2610.1,2608.8,4.1523]
[1751994569758,55.236,2610.1,2609.2,8.70102236]
[1751994570062,3.2078,2609.9,2609.2,8.70102236]
[1751994570261,2.04694,2609.8,2609.3,0.76637]
[1751994570559,1.2807,2609.8,2609.1,3.2078]
[1751994570767,32.186,2609.7,2609.6,0.76628]
[1751994570964,32.176,2609.7,2609.6,0.76628]
[1751994571364,55.236,2610.1,2609.6,5.0]
[1751994571665,3.2078,2610.6,2610.1,0.76613]
[1751994571866,32.142,2610.5,2610.1,3.2078]
[1751994572468,32.142,2610.5,2610.1,4.1523]
[1751994572760,32.098,2610.4,2610.1,4.1523]
[1751994572960,0.7661,2610.3,2610.1,4.1523]
[1751994573161,32.098,2610.2,2610.1,4.1523]
[1751994573559,32.86411,2610.2,2610.1,4.1523]
[1751994573761,3.2078,2610.6,2610.1,4.1523]
[1751994573963,0.76607,2610.4,2610.1,4.1523]
[1751994574165,32.049,2610.5,2610.1,4.1523]
[1751994574471,1.2646,2610.6,2610.1,4.1523]
[1751994574671,0.76611,2610.2,2610.1,4.1523]
[1751994574859,0.7662,2609.9,2609.8,3.2078]
[1751994575064,0.76637,2609.3,2609.2,1.6566807]
[1751994575263,0.76637,2609.3,2609.2,3.47901728]
[1751994575671,0.76637,2609.3,2609.2,1.82233658]
[1751994576167,36.99,2609.3,2608.8,3.2078]
[1751994576474,0.76649,2608.9,2608.8,3.2078]
[1751994576660,0.76655,2608.7,2608.5,3.2078]
[1751994576865,63.907,2608.9,2608.7,0.76655]
[1751994577065,63.907,2608.9,2608.8,12.85332236]
[1751994577267,63.907,2608.9,2608.8,3.2078]
[1751994577667,63.907,2608.9,2608.5,3.2078]
[1751994577971,63.907,2608.9,2608.6,0.9445]
[1751994578172,64.6735,2608.9,2608.6,0.9445]
[1751994578873,64.67351,2608.9,2608.6,0.9445]
[1751994579067,64.6735,2608.9,2608.5,3.2078]
[1751994579269,64.6735,2608.9,2608.6,0.9445]
[1751994579965,63.907,2608.9,2608.8,3.2078]
[1751994580166,64.67349,2608.9,2608.8,3.2078]
[1751994580371,70.8233,2608.9,2608.5,3.2078]
[1751994580672,1.3128,2608.8,2608.5,3.2078]
[1751994580868,0.76658,2608.6,2608.5,3.2078]
[1751994581070,64.41958,2608.6,2608.5,3.2078]
[1751994581471,63.653,2608.6,2608.2,6.09475534]
[1751994581776,63.653,2608.6,2608.2,6.86145534]
[1751994582374,63.653,2608.6,2608.1,3.2078]
[1751994582577,0.7667,2608.2,2608.1,3.2078]
[1751994582769,63.507,2608.2,2608.1,3.2078]
[1751994582970,63.507,2608.2,2608.1,4.99963577]
[1751994583169,65.627,2608.2,2608.1,4.99963577]
[1751994583576,64.8603,2608.2,2607.8,6.09475534]
[1751994583775,65.62702,2608.2,2607.9,1.79235824]
[1751994583971,0.76674,2608.1,2608.0,1.79235824]
[1751994584174,1.3533,2608.1,2608.0,1.79235824]
[1751994585075,63.507,2608.2,2608.0,1.79235824]
[1751994585273,63.507,2608.2,2608.0,3.97453]
[1751994585874,63.507,2608.2,2608.1,1.79019544]
[1751994586172,63.507,2608.2,2608.0,3.97454]
[1751994586568,63.507,2608.2,2608.0,3.2078]
[1751994586773,63.507,2608.2,2608.0,3.97454]